[Event "Early-Titled-Tuesday-Blitz-February-06-2024"]
[Site "Chess.com"]
[Date "2024.02.06"]
[Round "10"]
[White "NastyaHn"]
[Black "chess_blitz00"]
[Result "0-1"]
[WhiteElo "2367"]
[BlackElo "2491"]
[TimeControl "180+1"]
[EndTime "9:57:11 PST"]
[Termination "chess_blitz00 won on time"]

1. Nc3 {[%clk 0:03:00.9]} 1... c5 {[%clk 0:02:59]} 2. Nf3 {[%clk 0:03:00.4]}
2... Nc6 {[%clk 0:02:59.4]} 3. d4 {[%clk 0:03:00.4]} 3... cxd4 {[%clk
0:02:59.1]} 4. Nxd4 {[%clk 0:03:00.6]} 4... Nf6 {[%clk 0:03:00]} 5. e4 {[%clk
0:02:57.4]} 5... e6 {[%clk 0:02:57]} 6. Ndb5 {[%clk 0:02:56.5]} 6... a6 {[%clk
0:02:45.8]} 7. Nd6+ {[%clk 0:02:55.3]} 7... Bxd6 {[%clk 0:02:46.4]} 8. Qxd6
{[%clk 0:02:54.6]} 8... Qe7 {[%clk 0:02:47.1]} 9. Qxe7+ {[%clk 0:02:47.5]} 9...
Kxe7 {[%clk 0:02:48]} 10. f4 {[%clk 0:02:46.2]} 10... d6 {[%clk 0:02:48.3]} 11.
Bd3 {[%clk 0:02:45.4]} 11... b5 {[%clk 0:02:41.6]} 12. Be3 {[%clk 0:02:45]}
12... Bb7 {[%clk 0:02:41.9]} 13. O-O-O {[%clk 0:02:42.4]} 13... Nb4 {[%clk
0:02:41.7]} 14. a3 {[%clk 0:02:41]} 14... Nxd3+ {[%clk 0:02:41.9]} 15. cxd3
{[%clk 0:02:41.3]} 15... Rac8 {[%clk 0:02:41.8]} 16. Kb1 {[%clk 0:02:41.5]}
16... d5 {[%clk 0:02:41.1]} 17. e5 {[%clk 0:02:41.2]} 17... Nd7 {[%clk
0:02:38.3]} 18. Bd4 {[%clk 0:02:40.7]} 18... h5 {[%clk 0:02:36.4]} 19. Ne2
{[%clk 0:02:40.1]} 19... a5 {[%clk 0:02:35]} 20. Rc1 {[%clk 0:02:40.4]} 20...
Ba6 {[%clk 0:02:33.4]} 21. b4 {[%clk 0:02:39.3]} 21... a4 {[%clk 0:02:29.5]} 22.
Kb2 {[%clk 0:02:38.9]} 22... Rxc1 {[%clk 0:02:26]} 23. Rxc1 {[%clk 0:02:38.2]}
23... Rc8 {[%clk 0:02:26.9]} 24. Rxc8 {[%clk 0:02:36.1]} 24... Bxc8 {[%clk
0:02:27.8]} 25. Nc3 {[%clk 0:02:31.7]} 25... Ba6 {[%clk 0:02:26.9]} 26. Kc2
{[%clk 0:02:31.9]} 26... Kd8 {[%clk 0:02:17.3]} 27. Kd2 {[%clk 0:02:31.3]} 27...
Nb8 {[%clk 0:02:14.5]} 28. Ne2 {[%clk 0:02:30.2]} 28... Nc6 {[%clk 0:02:13.2]}
29. Bc5 {[%clk 0:02:30.6]} 29... Ke8 {[%clk 0:02:10]} 30. Ke3 {[%clk 0:02:29.7]}
30... Nb8 {[%clk 0:02:06.9]} 31. Nd4 {[%clk 0:02:28]} 31... Kd7 {[%clk
0:02:05.6]} 32. h3 {[%clk 0:02:26.7]} 32... g6 {[%clk 0:02:04.1]} 33. g4 {[%clk
0:02:26.1]} 33... hxg4 {[%clk 0:02:05]} 34. hxg4 {[%clk 0:02:26.3]} 34... Nc6
{[%clk 0:01:52.8]} 35. Nf3 {[%clk 0:02:19.5]} 35... Ke8 {[%clk 0:01:43.6]} 36.
Ng5 {[%clk 0:02:18.9]} 36... Bc8 {[%clk 0:01:40.6]} 37. Nh7 {[%clk 0:02:13.9]}
37... Bd7 {[%clk 0:01:39.4]} 38. Nf6+ {[%clk 0:02:13.9]} 38... Kd8 {[%clk
0:01:38.8]} 39. Bd6 {[%clk 0:02:00.6]} 39... Bc8 {[%clk 0:01:31.3]} 40. Nh7
{[%clk 0:01:55.7]} 40... Bb7 {[%clk 0:01:23.4]} 41. Ng5 {[%clk 0:01:55.5]} 41...
d4+ {[%clk 0:01:07.4]} 42. Kd2 {[%clk 0:01:47.9]} 42... Ke8 {[%clk 0:01:03.5]}
43. Bc5 {[%clk 0:01:42.2]} 43... Ba8 {[%clk 0:00:49.3]} 44. Ne4 {[%clk
0:01:39.6]} 44... Nd8 {[%clk 0:00:19.9]} 45. Nd6+ {[%clk 0:01:39]} 45... Kd7
{[%clk 0:00:19.4]} 46. Nxb5 {[%clk 0:01:38.7]} 46... g5 {[%clk 0:00:16.5]} 47.
fxg5 {[%clk 0:01:28.1]} 47... Bf3 {[%clk 0:00:16.9]} 48. Nxd4 {[%clk 0:01:25.6]}
48... Bxg4 {[%clk 0:00:16.2]} 49. Ke3 {[%clk 0:01:25.2]} 49... Nc6 {[%clk
0:00:12.4]} 50. Nb5 {[%clk 0:00:56.5]} 50... Bh5 {[%clk 0:00:04.6]} 51. d4
{[%clk 0:00:53.4]} 51... Bg6 {[%clk 0:00:03.5]} 52. Nc3 {[%clk 0:00:53.1]} 52...
Bc2 {[%clk 0:00:02.9]} 53. Kf4 {[%clk 0:00:44.6]} 53... Nd8 {[%clk 0:00:02.1]}
54. b5 {[%clk 0:00:39.9]} 54... Nb7 {[%clk 0:00:02.2]} 55. Na2 {[%clk 0:00:22]}
55... Bd3 {[%clk 0:00:01.9]} 56. b6 {[%clk 0:00:18.6]} 56... Bc4 {[%clk
0:00:01.7]} 57. Nb4 {[%clk 0:00:18.7]} 57... Bb3 {[%clk 0:00:02.3]} 58. g6
{[%clk 0:00:15.9]} 58... fxg6 {[%clk 0:00:02.5]} 59. Kg5 {[%clk 0:00:16.2]}
59... Na5 {[%clk 0:00:02.7]} 60. Kxg6 {[%clk 0:00:15.3]} 60... Nc4 {[%clk
0:00:03.1]} 61. Na6 {[%clk 0:00:12.4]} 61... Kc6 {[%clk 0:00:01.9]} 62. Kf6
{[%clk 0:00:05.8]} 62... Kb7 {[%clk 0:00:02.3]} 63. Nc7 {[%clk 0:00:03.7]} 63...
Ne3 {[%clk 0:00:01.3]} 64. Nxe6 {[%clk 0:00:03.5]} 64... Nd5+ {[%clk 0:00:01.1]}
65. Kf7 {[%clk 0:00:03.2]} 65... Nc3 {[%clk 0:00:01.8]} 66. Ke7 {[%clk
0:00:02.8]} 66... Nd5+ {[%clk 0:00:02.1]} 67. Kd6 {[%clk 0:00:03.2]} 67... Ne3
{[%clk 0:00:02.2]} 68. Nd8+ {[%clk 0:00:03.5]} 68... Kc8 {[%clk 0:00:02.2]} 69.
Nc6 {[%clk 0:00:03.9]} 69... Nc4+ {[%clk 0:00:02.1]} 70. Ke7 {[%clk 0:00:01.4]}
70... Kb7 {[%clk 0:00:02.6]} 71. Ke6 {[%clk 0:00:01.4]} 71... Kxc6 {[%clk
0:00:02.7]} 72. d5+ {[%clk 0:00:01.4]} 72... Kb7 {[%clk 0:00:02.9]} 73. Bd6
{[%clk 0:00:01.5]} 73... Nxb6 {[%clk 0:00:03.1]} 74. Ke7 {[%clk 0:00:01.5]}
74... Nxd5+ {[%clk 0:00:02.9]} 75. Kd7 {[%clk 0:00:01.5]} 75... Nf4 {[%clk
0:00:02.7]} 0-1

[Event "Early-Titled-Tuesday-Blitz-February-06-2024"]
[Site "Chess.com"]
[Date "2024.02.06"]
[Round "10"]
[White "Goryachkina"]
[Black "Njal28"]
[Result "1/2-1/2"]
[WhiteElo "2673"]
[BlackElo "3044"]
[TimeControl "180+1"]
[EndTime "9:57:25 PST"]
[Termination "Game drawn by stalemate"]

1. e4 {[%clk 0:02:59.9]} 1... g6 {[%clk 0:02:54.3]} 2. d4 {[%clk 0:02:59.4]}
2... Bg7 {[%clk 0:02:54]} 3. Nf3 {[%clk 0:02:58.7]} 3... Nf6 {[%clk 0:02:53]} 4.
Nc3 {[%clk 0:02:58.4]} 4... d5 {[%clk 0:02:52.9]} 5. e5 {[%clk 0:02:52.9]} 5...
Ne4 {[%clk 0:02:53.1]} 6. Nxe4 {[%clk 0:02:38.8]} 6... dxe4 {[%clk 0:02:53.3]}
7. Ng5 {[%clk 0:02:38.9]} 7... c5 {[%clk 0:02:51.5]} 8. c3 {[%clk 0:02:35.3]}
8... cxd4 {[%clk 0:02:48.2]} 9. Qxd4 {[%clk 0:02:26.4]} 9... O-O {[%clk
0:02:02.1]} 10. Qxd8 {[%clk 0:02:10.1]} 10... Rxd8 {[%clk 0:02:03]} 11. Bc4
{[%clk 0:02:10]} 11... e6 {[%clk 0:01:58]} 12. Nxe4 {[%clk 0:02:10]} 12... Bxe5
{[%clk 0:01:56.4]} 13. Bg5 {[%clk 0:02:09.4]} 13... Rf8 {[%clk 0:01:49.6]} 14.
Be7 {[%clk 0:02:07.5]} 14... Re8 {[%clk 0:01:49.4]} 15. Nf6+ {[%clk 0:02:04.9]}
15... Bxf6 {[%clk 0:01:49.7]} 16. Bxf6 {[%clk 0:02:05.2]} 16... Nd7 {[%clk
0:01:49.9]} 17. Bg5 {[%clk 0:02:03.1]} 17... f6 {[%clk 0:01:47.4]} 18. Be3
{[%clk 0:02:00.1]} 18... Ne5 {[%clk 0:01:42.8]} 19. Be2 {[%clk 0:01:59.8]} 19...
Bd7 {[%clk 0:01:42.7]} 20. f4 {[%clk 0:01:56.5]} 20... Nf7 {[%clk 0:01:43.2]}
21. O-O-O {[%clk 0:01:54.6]} 21... Bc6 {[%clk 0:01:43.3]} 22. Rhg1 {[%clk
0:01:51.5]} 22... e5 {[%clk 0:01:41.6]} 23. Bc4 {[%clk 0:01:49.6]} 23... Kg7
{[%clk 0:01:29.1]} 24. Bxf7 {[%clk 0:01:21.5]} 24... Kxf7 {[%clk 0:01:27.6]} 25.
fxe5 {[%clk 0:01:21.8]} 25... Rxe5 {[%clk 0:01:28.5]} 26. Bd4 {[%clk 0:01:21.9]}
26... Re2 {[%clk 0:01:07.8]} 27. Rdf1 {[%clk 0:01:13.3]} 27... f5 {[%clk
0:00:58.1]} 28. g4 {[%clk 0:01:09.2]} 28... Be4 {[%clk 0:00:52.7]} 29. gxf5
{[%clk 0:01:08.3]} 29... Bxf5 {[%clk 0:00:47.1]} 30. Rf2 {[%clk 0:00:59.5]}
30... Rae8 {[%clk 0:00:46.6]} 31. Rd1 {[%clk 0:00:54.2]} 31... a6 {[%clk
0:00:39]} 32. Rxe2 {[%clk 0:00:46.4]} 32... Rxe2 {[%clk 0:00:39.9]} 33. Rd2
{[%clk 0:00:46.6]} 33... Re1+ {[%clk 0:00:40.5]} 34. Rd1 {[%clk 0:00:46.8]}
34... Re4 {[%clk 0:00:41.4]} 35. b3 {[%clk 0:00:40.6]} 35... h5 {[%clk
0:00:36.7]} 36. Kd2 {[%clk 0:00:26.3]} 36... Rg4 {[%clk 0:00:29.7]} 37. Re1
{[%clk 0:00:25.7]} 37... g5 {[%clk 0:00:26]} 38. Rg1 {[%clk 0:00:23.1]} 38...
Rh4 {[%clk 0:00:22.5]} 39. Rxg5 {[%clk 0:00:21.8]} 39... Rxh2+ {[%clk
0:00:22.7]} 40. Ke3 {[%clk 0:00:22.2]} 40... Bg6 {[%clk 0:00:19.7]} 41. a4
{[%clk 0:00:19]} 41... h4 {[%clk 0:00:15.1]} 42. Kf4 {[%clk 0:00:16.3]} 42... h3
{[%clk 0:00:14.6]} 43. Be5 {[%clk 0:00:13.2]} 43... Rf2+ {[%clk 0:00:13.1]} 44.
Ke3 {[%clk 0:00:05.1]} 44... h2 {[%clk 0:00:09.1]} 45. Bxh2 {[%clk 0:00:05]}
45... Rxh2 {[%clk 0:00:10]} 46. Rc5 {[%clk 0:00:05.2]} 46... Rh3+ {[%clk
0:00:07.5]} 47. Kd4 {[%clk 0:00:04.9]} 47... Rh4+ {[%clk 0:00:07.5]} 48. Ke3
{[%clk 0:00:03.4]} 48... Re4+ {[%clk 0:00:04.8]} 49. Kd2 {[%clk 0:00:03.7]}
49... Re7 {[%clk 0:00:05.7]} 50. a5 {[%clk 0:00:03.8]} 50... Ke6 {[%clk
0:00:05.4]} 51. c4 {[%clk 0:00:03.9]} 51... Be8 {[%clk 0:00:04.8]} 52. Kc3
{[%clk 0:00:03.4]} 52... Kd6 {[%clk 0:00:04.2]} 53. b4 {[%clk 0:00:03.3]} 53...
Bc6 {[%clk 0:00:03.4]} 54. Rg5 {[%clk 0:00:03.2]} 54... Re5 {[%clk 0:00:03.9]}
55. Rg6+ {[%clk 0:00:03.6]} 55... Re6 {[%clk 0:00:04.6]} 56. Rg5 {[%clk
0:00:03.9]} 56... Re3+ {[%clk 0:00:05.1]} 57. Kd4 {[%clk 0:00:03.8]} 57... Re4+
{[%clk 0:00:05.8]} 58. Kc3 {[%clk 0:00:03.7]} 58... Re7 {[%clk 0:00:04.8]} 59.
b5 {[%clk 0:00:03.6]} 59... Be4 {[%clk 0:00:03.9]} 60. Rh5 {[%clk 0:00:03.3]}
60... Kc7 {[%clk 0:00:03.7]} 61. Kb4 {[%clk 0:00:03.3]} 61... Bd3 {[%clk
0:00:02.3]} 62. Kc5 {[%clk 0:00:03]} 62... Be4 {[%clk 0:00:02.2]} 63. Rh6 {[%clk
0:00:02.9]} 63... axb5 {[%clk 0:00:02.1]} 64. cxb5 {[%clk 0:00:03.1]} 64... Re5+
{[%clk 0:00:02.8]} 65. Kd4 {[%clk 0:00:03.2]} 65... Re7 {[%clk 0:00:03.4]} 66.
Kc5 {[%clk 0:00:03.6]} 66... Bg2 {[%clk 0:00:02.7]} 67. b6+ {[%clk 0:00:02.2]}
67... Kd7 {[%clk 0:00:03.1]} 68. Rd6+ {[%clk 0:00:02.6]} 68... Ke8 {[%clk
0:00:03.4]} 69. Rg6 {[%clk 0:00:02.9]} 69... Bf3 {[%clk 0:00:02.6]} 70. Rg8+
{[%clk 0:00:03.1]} 70... Kd7 {[%clk 0:00:02.9]} 71. Rg6 {[%clk 0:00:03.4]} 71...
Re5+ {[%clk 0:00:03.3]} 72. Kb4 {[%clk 0:00:03.3]} 72... Bc6 {[%clk 0:00:04.1]}
73. Rg7+ {[%clk 0:00:03.5]} 73... Kd6 {[%clk 0:00:04.5]} 74. Rg6+ {[%clk
0:00:03.9]} 74... Re6 {[%clk 0:00:03.3]} 75. Rxe6+ {[%clk 0:00:04]} 75... Kxe6
{[%clk 0:00:04.2]} 76. a6 {[%clk 0:00:04.6]} 76... bxa6 {[%clk 0:00:04.1]} 77.
Ka3 {[%clk 0:00:05.1]} 77... Bb7 {[%clk 0:00:03.6]} 78. Kb2 {[%clk 0:00:05.7]}
78... Kd5 {[%clk 0:00:04.2]} 79. Ka1 {[%clk 0:00:06.6]} 79... Kc6 {[%clk
0:00:05.1]} 80. Kb2 {[%clk 0:00:07.3]} 80... Kxb6 {[%clk 0:00:06]} 81. Ka1
{[%clk 0:00:08.2]} 81... a5 {[%clk 0:00:04.2]} 82. Kb2 {[%clk 0:00:09.1]} 82...
Kb5 {[%clk 0:00:05.1]} 83. Ka1 {[%clk 0:00:10]} 83... Kb4 {[%clk 0:00:06]} 84.
Kb2 {[%clk 0:00:10.9]} 84... a4 {[%clk 0:00:06.4]} 85. Ka1 {[%clk 0:00:11.8]}
85... Ka3 {[%clk 0:00:07.2]} 86. Kb1 {[%clk 0:00:12.3]} 86... Bf3 {[%clk
0:00:08.1]} 87. Ka1 {[%clk 0:00:12.8]} 87... Bd1 {[%clk 0:00:09]} 88. Kb1 {[%clk
0:00:13.2]} 88... Bb3 {[%clk 0:00:09.9]} 89. Ka1 {[%clk 0:00:13.8]} 89... Ba2
{[%clk 0:00:10.8]} 1/2-1/2

[Event "Early-Titled-Tuesday-Blitz-February-06-2024"]
[Site "Chess.com"]
[Date "2024.02.06"]
[Round "10"]
[White "Vaathi_Coming"]
[Black "Willhaven3"]
[Result "1-0"]
[WhiteElo "2914"]
[BlackElo "2624"]
[TimeControl "180+1"]
[EndTime "9:57:30 PST"]
[Termination "Vaathi_Coming won by resignation"]

1. b3 {[%clk 0:03:00.9]} 1... d5 {[%clk 0:02:57]} 2. Bb2 {[%clk 0:03:01.8]} 2...
Bg4 {[%clk 0:02:57.2]} 3. Nf3 {[%clk 0:03:01]} 3... Nd7 {[%clk 0:02:57.2]} 4. c4
{[%clk 0:02:59.6]} 4... c6 {[%clk 0:02:56.1]} 5. cxd5 {[%clk 0:02:58.6]} 5...
cxd5 {[%clk 0:02:57]} 6. e3 {[%clk 0:02:58.2]} 6... Ngf6 {[%clk 0:02:55.4]} 7.
Be2 {[%clk 0:02:58.5]} 7... e6 {[%clk 0:02:53.4]} 8. O-O {[%clk 0:02:58.9]} 8...
Bd6 {[%clk 0:02:50.6]} 9. Nc3 {[%clk 0:02:58.6]} 9... a6 {[%clk 0:02:50.7]} 10.
Rc1 {[%clk 0:02:56.6]} 10... O-O {[%clk 0:02:49.8]} 11. Nd4 {[%clk 0:02:56.7]}
11... Bxe2 {[%clk 0:02:46.2]} 12. Ncxe2 {[%clk 0:02:57.6]} 12... Rc8 {[%clk
0:02:44.8]} 13. Rxc8 {[%clk 0:02:55]} 13... Qxc8 {[%clk 0:02:45.7]} 14. f4
{[%clk 0:02:55.6]} 14... Qc7 {[%clk 0:02:36.9]} 15. Ng3 {[%clk 0:02:54.2]} 15...
Rc8 {[%clk 0:02:30.1]} 16. Qb1 {[%clk 0:02:39.7]} 16... Qa5 {[%clk 0:02:24.2]}
17. Rc1 {[%clk 0:02:18.4]} 17... Rc5 {[%clk 0:02:09.9]} 18. Bc3 {[%clk
0:02:12.1]} 18... Qb6 {[%clk 0:01:55.1]} 19. h3 {[%clk 0:02:02.6]} 19... Rc8
{[%clk 0:01:46.8]} 20. Kh2 {[%clk 0:02:01.6]} 20... h5 {[%clk 0:01:41.4]} 21.
Qb2 {[%clk 0:01:51.8]} 21... Qd8 {[%clk 0:01:31.9]} 22. Nf3 {[%clk 0:01:49.5]}
22... Qf8 {[%clk 0:01:09.5]} 23. Qb1 {[%clk 0:01:35.6]} 23... Ba3 {[%clk
0:01:04.5]} 24. Bb2 {[%clk 0:01:32.1]} 24... Bxb2 {[%clk 0:01:03.6]} 25. Qxb2
{[%clk 0:01:32.4]} 25... Qd8 {[%clk 0:00:58.6]} 26. Qa3 {[%clk 0:01:22.2]} 26...
Rxc1 {[%clk 0:00:49.5]} 27. Qxc1 {[%clk 0:01:23.1]} 27... g6 {[%clk 0:00:39.3]}
28. Qc3 {[%clk 0:01:21.2]} 28... Ne8 {[%clk 0:00:27.3]} 29. Qb4 {[%clk
0:01:07.2]} 29... Nb6 {[%clk 0:00:17.2]} 30. Ne5 {[%clk 0:01:02.4]} 30... Nd6
{[%clk 0:00:17.1]} 31. Ne2 {[%clk 0:00:59.6]} 31... Nbc8 {[%clk 0:00:16.3]} 32.
Nd4 {[%clk 0:00:54.7]} 32... Qc7 {[%clk 0:00:15]} 33. d3 {[%clk 0:00:41.7]}
33... a5 {[%clk 0:00:13.3]} 34. Qe1 {[%clk 0:00:39.9]} 34... b6 {[%clk
0:00:12.1]} 35. Qg3 {[%clk 0:00:34.1]} 35... Ne7 {[%clk 0:00:11.4]} 36. Qg5
{[%clk 0:00:33.5]} 36... Nef5 {[%clk 0:00:02.7]} 37. Nxf5 {[%clk 0:00:05.1]}
37... exf5 {[%clk 0:00:03.6]} 38. Qf6 {[%clk 0:00:04.3]} 38... Ne8 {[%clk
0:00:02.3]} 39. Qh4 {[%clk 0:00:04.2]} 39... Qd6 {[%clk 0:00:01.7]} 40. Qg3
{[%clk 0:00:03.8]} 40... Qe6 {[%clk 0:00:01.9]} 41. Nf3 {[%clk 0:00:03.9]} 41...
Nf6 {[%clk 0:00:02.8]} 42. Qf2 {[%clk 0:00:04.1]} 42... Qd6 {[%clk 0:00:02.8]}
43. Ne5 {[%clk 0:00:04.1]} 43... Qe6 {[%clk 0:00:03.1]} 44. Qb2 {[%clk
0:00:04.1]} 44... Nd7 {[%clk 0:00:03.5]} 45. Qc3 {[%clk 0:00:03.1]} 45... Nc5
{[%clk 0:00:03.7]} 46. Qd4 {[%clk 0:00:03.2]} 46... Kh7 {[%clk 0:00:03.9]} 47.
Nf3 {[%clk 0:00:02.8]} 47... Kg8 {[%clk 0:00:03.5]} 48. Ng5 {[%clk 0:00:02.7]}
48... Qd6 {[%clk 0:00:03.5]} 49. Qh8+ {[%clk 0:00:02.9]} 49... Kxh8 {[%clk
0:00:03]} 50. Nxf7+ {[%clk 0:00:03.6]} 50... Kg7 {[%clk 0:00:03.9]} 51. Nxd6
{[%clk 0:00:04.5]} 51... Nxd3 {[%clk 0:00:04.2]} 52. Nc8 {[%clk 0:00:04.6]}
52... Nc1 {[%clk 0:00:04.5]} 53. Nxb6 {[%clk 0:00:04.8]} 53... Nxa2 {[%clk
0:00:04.4]} 54. Nxd5 {[%clk 0:00:05.6]} 54... Nc1 {[%clk 0:00:04.7]} 55. b4
{[%clk 0:00:04.6]} 55... a4 {[%clk 0:00:04.5]} 56. b5 {[%clk 0:00:04.4]} 56...
Nd3 {[%clk 0:00:03.4]} 57. b6 {[%clk 0:00:04.2]} 57... Nc5 {[%clk 0:00:04]} 58.
Nc3 {[%clk 0:00:03.5]} 58... a3 {[%clk 0:00:04.1]} 59. Kg1 {[%clk 0:00:03.4]}
59... Kf6 {[%clk 0:00:03.8]} 60. Kf1 {[%clk 0:00:03.8]} 60... Ke6 {[%clk
0:00:03]} 61. Ke2 {[%clk 0:00:04.2]} 61... Kd7 {[%clk 0:00:02.8]} 62. Kd2 {[%clk
0:00:04]} 62... Ne4+ {[%clk 0:00:02.1]} 63. Kc2 {[%clk 0:00:03.9]} 63... Nxc3
{[%clk 0:00:01.7]} 64. Kxc3 {[%clk 0:00:04.8]} 64... Kc6 {[%clk 0:00:02.4]} 65.
Kb3 {[%clk 0:00:05.3]} 65... Kxb6 {[%clk 0:00:03]} 66. Kxa3 {[%clk 0:00:05.6]}
66... Kc5 {[%clk 0:00:03.5]} 67. Kb3 {[%clk 0:00:05.6]} 67... Kd5 {[%clk
0:00:02.3]} 68. Kc3 {[%clk 0:00:06.2]} 68... Ke4 {[%clk 0:00:02.6]} 69. Kd2
{[%clk 0:00:06.5]} 69... Kd5 {[%clk 0:00:02.7]} 70. Kd3 {[%clk 0:00:06.8]} 70...
Kc5 {[%clk 0:00:02.2]} 71. e4 {[%clk 0:00:06.9]} 71... fxe4+ {[%clk 0:00:01.9]}
72. Kxe4 {[%clk 0:00:07.8]} 72... Kd6 {[%clk 0:00:02.5]} 73. f5 {[%clk
0:00:07.9]} 73... g5 {[%clk 0:00:02.1]} 74. g4 {[%clk 0:00:07.9]} 74... h4
{[%clk 0:00:02]} 75. f6 {[%clk 0:00:07.1]} 75... Ke6 {[%clk 0:00:02.1]} 76. f7
{[%clk 0:00:07.6]} 76... Kxf7 {[%clk 0:00:02.3]} 77. Kf5 {[%clk 0:00:08.5]}
77... Kg7 {[%clk 0:00:03.2]} 78. Kxg5 {[%clk 0:00:09]} 1-0

[Event "Early-Titled-Tuesday-Blitz-February-06-2024"]
[Site "Chess.com"]
[Date "2024.02.06"]
[Round "10"]
[White "Polish_fighter3000"]
[Black "mitrabhaa"]
[Result "0-1"]
[WhiteElo "3047"]
[BlackElo "2930"]
[TimeControl "180+1"]
[EndTime "9:57:35 PST"]
[Termination "mitrabhaa won on time"]

1. b3 {[%clk 0:03:00.9]} 1... d5 {[%clk 0:03:00.1]} 2. Bb2 {[%clk 0:02:59.4]}
2... Bg4 {[%clk 0:03:00.7]} 3. f3 {[%clk 0:02:59.8]} 3... Bh5 {[%clk 0:03:01.2]}
4. h4 {[%clk 0:02:57.2]} 4... f6 {[%clk 0:03:00.5]} 5. Nh3 {[%clk 0:02:53.3]}
5... e5 {[%clk 0:02:59.9]} 6. d4 {[%clk 0:02:50.6]} 6... exd4 {[%clk 0:02:59.2]}
7. Qxd4 {[%clk 0:02:49.3]} 7... Bf7 {[%clk 0:02:59.5]} 8. e3 {[%clk 0:02:45.5]}
8... Nd7 {[%clk 0:02:58.6]} 9. Nc3 {[%clk 0:02:44.5]} 9... c6 {[%clk 0:02:58.5]}
10. O-O-O {[%clk 0:02:44.1]} 10... Bc5 {[%clk 0:02:55.5]} 11. Qd2 {[%clk
0:02:41.7]} 11... Ne7 {[%clk 0:02:56]} 12. Nf4 {[%clk 0:02:37.5]} 12... Nf5
{[%clk 0:02:51.3]} 13. Re1 {[%clk 0:02:31.9]} 13... O-O {[%clk 0:02:50.6]} 14.
Bd3 {[%clk 0:02:25.5]} 14... Nd6 {[%clk 0:02:35.9]} 15. Na4 {[%clk 0:02:22.2]}
15... Re8 {[%clk 0:02:31.8]} 16. g4 {[%clk 0:02:18.7]} 16... Bb6 {[%clk
0:02:18.3]} 17. Nxb6 {[%clk 0:02:18]} 17... axb6 {[%clk 0:02:17.8]} 18. Kb1
{[%clk 0:02:17.9]} 18... Ne5 {[%clk 0:02:18.2]} 19. Be2 {[%clk 0:02:12.7]} 19...
Qe7 {[%clk 0:02:07.9]} 20. g5 {[%clk 0:02:10.3]} 20... f5 {[%clk 0:02:06.5]} 21.
h5 {[%clk 0:01:58.3]} 21... Qxg5 {[%clk 0:02:03.3]} 22. Rhg1 {[%clk 0:01:56.7]}
22... Qh6 {[%clk 0:02:00.4]} 23. Rg2 {[%clk 0:01:53.5]} 23... Re7 {[%clk
0:01:50.6]} 24. Reg1 {[%clk 0:01:50.9]} 24... Ne8 {[%clk 0:01:51.1]} 25. Bd3
{[%clk 0:01:45.2]} 25... Qf6 {[%clk 0:01:47.8]} 26. Qf2 {[%clk 0:01:33.8]} 26...
c5 {[%clk 0:01:40.7]} 27. Bb5 {[%clk 0:01:32.1]} 27... Rd8 {[%clk 0:01:26.7]}
28. Nd3 {[%clk 0:01:08.6]} 28... Nxd3 {[%clk 0:01:16.8]} 29. Bxd3 {[%clk
0:00:55.2]} 29... d4 {[%clk 0:01:15.7]} 30. exd4 {[%clk 0:00:56.1]} 30... cxd4
{[%clk 0:01:15.8]} 31. Rg5 {[%clk 0:00:55.2]} 31... Be6 {[%clk 0:01:05.9]} 32.
Qd2 {[%clk 0:00:52.1]} 32... Nc7 {[%clk 0:01:03.4]} 33. Qb4 {[%clk 0:00:45]}
33... Bc8 {[%clk 0:00:54.3]} 34. a4 {[%clk 0:00:29.8]} 34... Na6 {[%clk
0:00:53.9]} 35. Qc4+ {[%clk 0:00:17.3]} 35... Be6 {[%clk 0:00:51.2]} 36. Qb5
{[%clk 0:00:07.8]} 36... Bd7 {[%clk 0:00:51.1]} 37. Qc4+ {[%clk 0:00:05.5]}
37... Be6 {[%clk 0:00:50.8]} 38. Rxf5 {[%clk 0:00:05.2]} 38... Qxf5 {[%clk
0:00:47.8]} 39. Bxf5 {[%clk 0:00:03.3]} 39... Bxc4 {[%clk 0:00:48.2]} 40. bxc4
{[%clk 0:00:04.2]} 40... Nc5 {[%clk 0:00:48.8]} 41. Ba3 {[%clk 0:00:03.9]} 41...
Re5 {[%clk 0:00:46.8]} 42. Be4 {[%clk 0:00:02.4]} 42... Nxe4 {[%clk 0:00:44.9]}
43. fxe4 {[%clk 0:00:03.3]} 43... Rxe4 {[%clk 0:00:45.3]} 44. h6 {[%clk
0:00:04]} 44... g6 {[%clk 0:00:45.4]} 45. Rf1 {[%clk 0:00:04.5]} 45... Re5
{[%clk 0:00:38.4]} 46. Rf6 {[%clk 0:00:03.9]} 46... Ra5 {[%clk 0:00:19.1]} 47.
Kb2 {[%clk 0:00:04]} 47... Rxa4 {[%clk 0:00:18.9]} 48. Kb3 {[%clk 0:00:04.6]}
48... Ra6 {[%clk 0:00:17.8]} 49. Be7 {[%clk 0:00:04.9]} 49... Re8 {[%clk
0:00:17.6]} 50. Bd6 {[%clk 0:00:05.5]} 50... Ra5 {[%clk 0:00:16.5]} 51. Bb4
{[%clk 0:00:05.5]} 51... Rh5 {[%clk 0:00:16.2]} 52. Rxb6 {[%clk 0:00:05.1]}
52... Rxh6 {[%clk 0:00:15.7]} 53. Rxb7 {[%clk 0:00:05.5]} 53... g5 {[%clk
0:00:16.4]} 54. c5 {[%clk 0:00:04.6]} 54... g4 {[%clk 0:00:15.9]} 55. Rb6 {[%clk
0:00:03.3]} 55... Rg6 {[%clk 0:00:15.3]} 56. c6 {[%clk 0:00:01.7]} 56... g3
{[%clk 0:00:14.8]} 57. Bc5 {[%clk 0:00:02.1]} 57... Rc8 {[%clk 0:00:11.8]} 58.
Bxd4 {[%clk 0:00:02.2]} 58... Rgxc6 {[%clk 0:00:10.8]} 59. Rb5 {[%clk
0:00:02.4]} 59... Rg6 {[%clk 0:00:10.8]} 60. Re5 {[%clk 0:00:02.1]} 60... g2
{[%clk 0:00:11.1]} 61. Re1 {[%clk 0:00:02.7]} 61... Rd8 {[%clk 0:00:10.5]} 62.
Bg1 {[%clk 0:00:02.2]} 62... Rf8 {[%clk 0:00:11]} 63. Bd4 {[%clk 0:00:01.3]}
63... Rf3+ {[%clk 0:00:11.2]} 64. c3 {[%clk 0:00:01.1]} 64... Rf1 {[%clk
0:00:11.9]} 65. Re8+ {[%clk 0:00:01.5]} 65... Kf7 {[%clk 0:00:12.4]} 66. Rh8
{[%clk 0:00:02.1]} 66... g1=Q {[%clk 0:00:11.3]} 67. Bxg1 {[%clk 0:00:02.1]}
67... Rfxg1 {[%clk 0:00:12.2]} 68. Rxh7+ {[%clk 0:00:02.7]} 68... Ke6 {[%clk
0:00:13.1]} 69. Ra7 {[%clk 0:00:02.8]} 69... Kd5 {[%clk 0:00:13.4]} 70. Ra5+
{[%clk 0:00:02.3]} 70... Ke4 {[%clk 0:00:13.8]} 71. Rc5 {[%clk 0:00:01.6]} 71...
R1g5 {[%clk 0:00:13.3]} 72. Rc8 {[%clk 0:00:01.7]} 72... Rd5 {[%clk 0:00:10.6]}
73. Kc4 {[%clk 0:00:01.8]} 73... Rdd6 {[%clk 0:00:10.6]} 74. Kc5 {[%clk
0:00:02.2]} 74... Rde6 {[%clk 0:00:09.9]} 75. c4 {[%clk 0:00:02.2]} 75... Kd3
{[%clk 0:00:09.8]} 76. Kb5 {[%clk 0:00:01.3]} 76... Rb6+ {[%clk 0:00:08.5]} 77.
Ka5 {[%clk 0:00:01.5]} 77... Ra6+ {[%clk 0:00:08.6]} 78. Kb5 {[%clk 0:00:01.6]}
78... Rgb6+ {[%clk 0:00:09.2]} 79. Kc5 {[%clk 0:00:02]} 79... Kc3 {[%clk
0:00:09.9]} 80. Kd5 {[%clk 0:00:01.7]} 80... Rd6+ {[%clk 0:00:10.2]} 81. Kc5
{[%clk 0:00:02.1]} 81... Rh6 {[%clk 0:00:10.5]} 82. Kb5 {[%clk 0:00:02.1]} 82...
Ra1 {[%clk 0:00:10.1]} 83. c5 {[%clk 0:00:01.2]} 83... Rb1+ {[%clk 0:00:10.7]}
84. Ka5 {[%clk 0:00:01.6]} 84... Kc4 {[%clk 0:00:11.2]} 85. c6 {[%clk
0:00:02.1]} 85... Rh2 {[%clk 0:00:11]} 0-1